Cogmind - Beta 16.1 @@@ ROGUE MODE // 2026.03.23 @ 00:05:11 Player: Ceorik Result: Destroyed by S-43 Plague with Heavy Machine Gun Performance ------------- Evolutions (7) 3500 Regions Visited (19) 3800 Robots Destroyed (189) 945 Value Destroyed (6719) 6719 Prototype IDs (59) 1180 Alien Tech Used (1) 200 Bonus (1699) 1699 TOTAL SCORE: 18043 Bonus ------- High Alert Combat Kills 94 Follower Combat Kills 70 Aligned with FarCom 300 Met Data Miner 300 Met Warlord at Base 500 MAIN.C Attacked Warlord 500 Friendly Fire -65 Cogmind --------- Core Integrity 0/1300 Matter 61/300 Energy 91/100 System Corruption 23% Temperature Cool (0) Movement Core (50) Location -3/Research Parts ------- > --- POWER (2) -------- (None) > --- PROPULSION (7) --- (None) > --- UTILITY (10) ----- (None) > --- WEAPON (3) ------- (None) > --- INVENTORY (5) ---- Experimental Energy Well (600) Large Matter Pod (150) Centrium Light Armor Plating HERF Cannon Vortex Lance (12) Peak State ------------ > --- POWER ------------ Light Antimatter Reactor Reinforced Quantum Reactor > --- PROPULSION ------- Combat Airjet Gravmag Array Improved Antigrav System Cooled Antigrav System Cooled Antigrav System > --- UTILITY ---------- Advanced Power Amplifier Experimental Cooling System Large Storage Unit Experimental Energy Well Advanced Gravity Neutralizer Improved Transmission Jammer Experimental Cloaking Device Centrium Light Armor Plating System Mapper Advanced System Shield > --- WEAPON ----------- Vortex Shotgun Vortex Shotgun Vortex Lance > --- INVENTORY -------- Light Antimatter Reactor Experimental Energy Well Large Matter Pod Advanced Terrain Scan Processor Advanced ECM Suite Centrium Light Armor Plating Centrium Light Armor Plating HERF Cannon HERF Cannon Vortex Driver YOLO Cannon Vortex Catalyst Activator Vortex Lance [Rating: 167] Favorites ----------- Power Heavy Ion Engine Engine Heavy Ion Engine Power Core Light Nuclear Core Reactor Light Antimatter Reactor Propulsion Light Treads Treads Light Treads Wheel Armored Wheel Hover Unit Cooled Antigrav System Flight Unit Impulse Thruster Array Utility High-capacity Storage Unit Device Improved Heat Sink Storage High-capacity Storage Unit Processor Advanced Terrain Scan Processor Hackware System Mapper Protection Centrium Light Armor Plating Weapon Heavy Assault Rifle Energy Gun Vortex Shotgun Energy Cannon YOLO Cannon Ballistic Gun Heavy Assault Rifle Launcher Smartbomb Launcher Special Weapon Molecular Deconstructor Impact Weapon Hammer Slashing Weapon Scythe Piercing Weapon Vortex Lance Build | -11 -10 -9 -9 -9 -8 -8 -7 -7 -7 -7 -6 -6 -5 -5 -5 -5 -4 -4 -3 ------- Run | Yrd Mat Mat Min Exi Min Mat Fac Low Low Dat Pro Fac Fac Upp Upp War Pro Fac Res Slots Evolved 14 | . . 2 . . . 2 2 . . . . 2 2 . . . . 2 2 Power 1 | . . . . . . . . . . . . 1 . . . . . . . Propulsion 5 | . . 1 . . . . . . . . . 1 1 . . . . 1 1 Utility 7 | . . 1 . . . 1 2 . . . . . 1 . . . . 1 1 Weapon 1 | . . . . . . 1 . . . . . . . . . . . . . Parts Attached 146 | 9 6 26 . . . 13 10 2 5 1 10 6 4 2 3 16 1 8 24 Power 18 | 1 1 2 . . . 2 . 1 1 . 1 1 . 1 1 2 . 2 2 Engine 8 | 1 1 1 . . . 2 . 1 1 . 1 . . . . . . . . Core 4 | . . 1 . . . . . . . . . 1 . 1 1 . . . . Reactor 6 | . . . . . . . . . . . . . . . . 2 . 2 2 Propulsion 44 | 4 1 9 . . . 4 1 . 1 . 2 2 1 . . 2 . 1 16 Treads 12 | 2 . 7 . . . 3 . . . . . . . . . . . . . Leg . | . . . . . . . . . . . . . . . . . . . . Wheel 9 | 2 1 2 . . . 1 1 . 1 . . . . . . . . . 1 Hover 20 | . . . . . . . . . . . 2 2 1 . . 2 . 1 12 Flight 3 | . . . . . . . . . . . . . . . . . . . 3 Utility 47 | 2 3 7 . . . 2 7 1 1 . 5 1 1 . 1 7 1 5 3 Device 19 | 1 . 2 . . . . 2 . 1 . 2 1 1 . . 4 . 2 3 Storage 6 | 1 2 . . . . . . . . . 2 . . . . . 1 . . Processor 4 | . 1 . . . . . 2 . . . . . . . . 1 . . . Hackware 4 | . . . . . . 1 . . . . . . . . . . . 3 . Protection 14 | . . 5 . . . 1 3 1 . . 1 . . . 1 2 . . . Artifact . | . . . . . . . . . . . . . . . . . . . . Weapon 37 | 2 1 8 . . . 5 2 . 2 1 2 2 2 1 1 5 . . 3 Energy Gun 4 | . . 2 . . . . . . . . . . . . . 2 . . . Energy Cannon 3 | . . . . . . 1 . . . . 1 . . . . 1 . . . Ballistic Gun 12 | 2 . 4 . . . 2 2 . . . . . 2 . . . . . . Ballistic Cannon . | . . . . . . . . . . . . . . . . . . . . Launcher 8 | . . 1 . . . 1 . . 1 . 1 1 . 1 . 1 . . 1 Special Weapon 1 | . . . . . . . . . . . . . . . 1 . . . . Impact Weapon 3 | . 1 1 . . . 1 . . . . . . . . . . . . . Slashing Weapon 3 | . . . . . . . . . 1 1 . 1 . . . . . . . Piercing Weapon 3 | . . . . . . . . . . . . . . . . 1 . . 2 Special Melee Weapon . | . . . . . . . . . . . . . . . . . . . . Unidentified Prototypes 19 | . . 1 . . . . . . 1 . 5 . . . 1 10 . 1 . Corrupted Parts 1 | . . . . . . . . . . . . . . 1 . . . . . System Corruption 10 | . . . . . . . . . . . . . . 10 . . . . . Parts Lost 61 | . 4 11 . . . . . 1 3 . 5 2 2 . 3 . 3 . 27 Power 11 | . 1 . . . . . . 1 . . 1 . 1 . 1 . 2 . 4 Propulsion 22 | . 1 6 . . . . . . 2 . 2 . . . 1 . . . 10 Utility 16 | . 1 3 . . . . . . . . . . . . 1 . 1 . 10 Weapon 12 | . 1 2 . . . . . . 1 . 2 2 1 . . . . . 3 Highest Loss Streak 9 | . 1 6 . . . . . 1 3 . 5 2 2 . 2 . 3 . 9 To Critical Strikes 1 | . . . . . . . . . . . . . . . . . . . 1 Average Backups 15 | 3 8 18 20 19 19 19 18 18 17 17 12 12 13 14 12 12 11 12 11 Power 1 | . 1 2 2 2 2 2 2 1 2 2 1 . . . . . . . . Propulsion 1 | 1 2 2 4 4 4 3 2 3 2 2 . . 1 1 1 . . . 1 Utility 7 | . 2 8 7 7 7 7 9 9 7 7 8 9 9 9 7 7 7 6 5 Weapon 4 | . 1 3 7 6 6 6 5 5 5 6 3 1 3 4 4 4 4 5 5 Tool/Special . | . . . . . . . . . . . . . . . . . . . . Unused Backups 37 | . 1 8 . 2 . 5 1 1 1 . 1 3 . . 1 5 . 1 7 Power 4 | . . 3 . . . 1 . . . . . . . . . . . . . Propulsion 4 | . . 1 . . . 2 . 1 . . . . . . . . . . . Utility 12 | . . 2 . . . . 1 . . . 1 3 . . 1 . . 1 3 Weapon 16 | . 1 2 . 2 . 2 . . 1 . . . . . . 5 . . 3 Tool/Special 1 | . . . . . . . . . . . . . . . . . . . 1 Average Slot Usage (%) 90 | . 91 94 100 100 100 99 99 100 93 73 82 82 81 85 83 90 87 87 79 Engine 5 | . 14 8 11 11 11 9 7 7 7 7 7 6 5 5 2 . . . . Core 1 | . . 2 . . . . . . . . . 3 4 2 6 6 2 . . Reactor 1 | . . . . . . . . . . . . . . . . 3 2 4 8 Treads 9 | . 16 19 22 22 22 19 15 15 8 . . . . . . . . . . Wheel 5 | . 11 9 11 11 11 7 7 7 9 14 . . . . . . . . . Hover 8 | . . . . . . . . . . . 12 16 15 16 14 19 22 22 23 Device 14 | . 6 9 11 11 11 9 9 14 19 21 19 18 20 22 20 19 18 18 16 Storage 10 | . 14 11 11 11 11 9 7 7 7 7 9 12 11 11 11 11 13 10 8 Processor 4 | . 6 1 . . . . 9 15 14 14 11 6 5 5 5 5 5 1 . Hackware 2 | . . . . . . 8 4 . . . . . . . . . . 9 8 Protection 6 | . . 10 11 11 11 8 12 7 7 7 8 6 5 5 5 5 5 5 1 Energy Gun 2 | . . 2 . . . . . . . . . . . . . 9 11 10 2 Ballistic Gun 10 | . 10 15 21 22 22 25 22 23 15 2 1 . 1 11 7 . . . . Impact Weapon 1 | . 10 2 . . . . . . 2 . . . . . . . . . . Piercing Weapon 1 | . . . . . . . . . . . . . . . . 4 5 5 6 Peak Build Rating 167 | 7 8 22 22 23 23 33 45 46 51 48 78 91 101 101 107 138 133 155 167 Average Rating 66 | 4 7 18 22 22 23 30 41 45 45 36 56 86 98 98 99 127 126 140 139 On Entrance 59 | . 7 7 22 22 23 23 32 45 46 43 48 77 91 96 101 99 133 123 155 Avg Prop Armor Cover (%) 11 | 13 14 12 13 13 13 12 10 11 11 . . . . . . . 4 . 4 Naked Turns 23 | . . . . . . . . . . . . . . . . . . . 23 Heaviest Build 97 | 15 49 62 62 62 62 69 73 73 72 68 70 49 50 59 59 69 67 76 97 Greatest Support 90 | 40 40 60 12 12 12 65 16 12 22 22 34 57 69 69 69 76 76 90 90 Greatest Overweight (x) 6 | 1 4 5 5 5 5 5 6 6 5 3 6 1 . 1 1 1 1 1 2 Average Overweight (x) 1 | . 1 3 5 5 5 4 4 5 3 2 2 . . . . . . . . Largest Inventory Capacity 20 | 8 20 20 20 20 20 20 20 20 20 20 20 15 15 15 15 15 15 15 15 Average Capacity 17 | 7 14 20 20 20 20 20 20 20 20 20 18 15 15 15 15 15 15 15 14 Most Carried 20 | 6 9 20 20 20 20 20 20 20 20 19 20 15 15 15 15 15 14 15 15 Average Carried 16 | 3 8 18 20 19 20 19 19 19 18 18 14 14 14 15 14 14 13 14 13 Final Capacity 20 | 8 20 20 20 20 20 20 20 20 20 20 15 15 15 15 15 15 15 15 5 Final Carried 20 | 6 8 20 20 20 20 20 20 20 17 16 14 15 15 15 13 14 13 15 5 Class Distribution -------------------- 27% | Scavenger-Mutant 27% | Mutant 16% | Hacker-Mutant 9% | Scavenger-Skirmisher 6% | Skirmisher 4% | Scout 3% | Scavenger-Tank Dominant Class ---------------- Mutant | -10/Materials Scavenger-Mutant | -9/Materials Scavenger-Mutant | -9/Mines Scavenger-Mutant | -9/Exiles Scavenger-Mutant | -8/Mines Scavenger-Skirmisher | -8/Materials Scavenger-Tank | -7/Factory Skirmisher | -7/Lower Caves Scavenger-Mutant | -7/Lower Caves Mutant | -7/Data Miner Scavenger-Mutant | -6/Proximity Caves Scout | -6/Factory Scout | -5/Factory Skirmisher | -5/Upper Caves Mutant | -5/Upper Caves Mutant | -5/Warlord Mutant | -4/Proximity Caves Hacker-Mutant | -4/Factory Hacker-Mutant | -3/Research Resources | -11 -10 -9 -9 -9 -8 -8 -7 -7 -7 -7 -6 -6 -5 -5 -5 -5 -4 -4 -3 ----------- Run | Yrd Mat Mat Min Exi Min Mat Fac Low Low Dat Pro Fac Fac Upp Upp War Pro Fac Res Matter Collected 4646 | 219 479 739 114 . 47 435 253 416 63 . 383 411 . 126 330 337 . 30 264 Remotely . | . . . . . . . . . . . . . . . . . . . . Salvage Created 6385 | 39 403 1430 165 . 60 544 350 201 212 . 307 445 . 142 855 . 115 56 1061 Parts 369 | 7 28 84 14 . 2 31 22 16 3 . 2 44 . 9 34 . 6 3 64 Haulers Intercepted 8 | . 1 3 . . . 2 . . . . . 1 . . . . . . 1 Recyclers Shooed 3 | 1 . . . . . . . . . . . 2 . . . . . . . Parts Field Recycled . | . . . . . . . . . . . . . . . . . . . . Retrieved Matter . | . . . . . . . . . . . . . . . . . . . . Parts Self-Destructed 40 | . . . . . . . . 14 5 . 1 . . 5 9 . 6 . . Prevented 26 | . . . . . . . . . . . . . . 4 22 . . . . Parts Restored . | . . . . . . . . . . . . . . . . . . . . Kills | -11 -10 -9 -9 -9 -8 -8 -7 -7 -7 -7 -6 -6 -5 -5 -5 -5 -4 -4 -3 ------- Run | Yrd Mat Mat Min Exi Min Mat Fac Low Low Dat Pro Fac Fac Upp Upp War Pro Fac Res Combat Hostiles Destroyed 140 | . 13 29 8 . 2 4 8 6 7 . 3 19 . 5 11 . 5 . 20 Melee 18 | . 3 5 . . . . . . . . . . . . . . 1 . 9 Guns 53 | . 7 21 1 . . 4 8 6 1 . 1 . . . . . 4 . . Cannons 1 | . . . . . . . . . . . . . . . . . . . 1 AOE 54 | . . . 7 . 2 . . . 6 . 1 18 . 5 5 . . . 10 Classes Destroyed 20 | 1 5 5 . . . 2 1 . 1 . 1 2 . . 1 . 1 . . Worker 13 | . 4 2 . . . 1 . . . . . 2 . . . . . 1 3 Builder 9 | . 2 . . . . 1 1 . . . . . . . . . . . 5 Tunneler 5 | 2 . 2 . . . . . . . . . 1 . . . . . . . Hauler 8 | . 1 3 . . . 2 . . . . . 1 . . . . . . 1 Recycler 4 | . . . . . . 2 . . . . . . . . . . . . 2 Mechanic 2 | . . 1 . . . . . . . . . 1 . . . . . . . Operator 4 | . . 1 . . . . . . . . . 2 1 . . . . . . Drone 1 | . . . . . . . . . . . . . . . . . 1 . . Watcher 4 | . . 2 . . . 1 . . . . . . . . . . . 1 . Swarmer 43 | . 9 7 3 . . . 3 3 . . 1 6 . 5 . . . . 6 Grunt 30 | . 4 11 5 . 1 . . 2 2 . . 1 . . 4 . . . . Brawler 6 | . . . . . . . . . 3 . . . . . 3 . . . . Duelist 3 | . . 1 . . 1 . . . 1 . . . . . . . . . . Protector 2 | . . . . . . . . . . . . 2 . . . . . . . Sentry 23 | . . 10 . . . 3 2 . 1 . 1 2 . . 1 . . . 3 Specialist 4 | . . . . . . . . . . . . 3 . . 1 . . . . Hunter 7 | . . . . . . 1 1 . . . . 3 . . . . 2 . . Programmer 19 | . . . . . . . 2 1 . . . 2 . . 1 . 2 . 11 Behemoth 1 | . . . . . . . . . . . 1 . . . . . . . . Mutant 1 | . . . . . . . . . . . . . . . 1 . . . . Best Kill Streak 14 | 1 5 5 3 . 2 3 4 3 7 . 1 14 1 5 8 . 4 1 9 Combat Bots Only 11 | . 3 5 3 . 2 1 3 3 7 . 1 11 . 5 8 . 4 . 4 Max Kills in Single Turn 6 | 1 1 2 2 . 1 1 1 1 3 . 1 6 1 2 2 . 2 1 3 Gunslinging 1 | . . 1 . . . . . . . . . . . . . . 1 . . Exploded 5 | . . . 2 . 1 . . . 3 . 1 5 . 2 1 . . . 2 Melee 1 | . 1 1 . . . . . . . . . . . . . . 1 . 1 Uniques/NPCs Destroyed . | . . . . . . . . . . . . . . . . . . . . Combat | -11 -10 -9 -9 -9 -8 -8 -7 -7 -7 -7 -6 -6 -5 -5 -5 -5 -4 -4 -3 -------- Run | Yrd Mat Mat Min Exi Min Mat Fac Low Low Dat Pro Fac Fac Upp Upp War Pro Fac Res Hostile Shots Fired 1092 | . 81 198 11 . . 16 91 23 28 . 159 37 . 26 70 . 64 3 285 Missed 376 | . 19 53 5 . . 6 38 3 8 . 66 17 . 9 25 . 25 2 100 Hits 716 | . 62 145 6 . . 10 53 20 20 . 93 20 . 17 45 . 39 1 185 Melee 2 | . . 2 . . . . . . . . . . . . . . . . . Projectile 714 | . 62 143 6 . . 10 53 20 20 . 93 20 . 17 45 . 39 1 185 AOE 1 | . 1 . . . . . . . . . . . . . . . . . . Critical Strikes 25 | . . 6 . . . 1 . . 1 . . . . . 1 . 4 . 12 Part Disruptions 2 | . . . . . . . 1 . . . . . . . . . . . 1 Damage Taken 11892 | . 705 1753 94 . . 151 508 291 462 . 906 444 87 267 835 . 628 19 4742 Core 2255 | . 124 202 12 . . 38 56 16 55 . 132 26 . 13 188 . 91 . 1302 Absorbed by Shields . | . . . . . . . . . . . . . . . . . . . . Ignored by Resistances 27 | . . . . . . . . 10 9 . 8 . . . . . . . . Regen/Repaired (Parts) 67 | . . . . . . . . . . . . . . . . 67 . . . Core Remaining (%) 77 | 100 50 . . . 46 93 . . . . 63 96 . . . . 70 100 . Volleys Fired 289 | 9 19 86 10 . 4 20 24 11 10 . 8 25 2 7 23 2 11 1 17 Largest 3 | 2 2 2 2 . 1 3 3 3 2 . 2 1 1 1 2 1 2 1 1 Hottest 120 | 40 40 80 46 . 30 76 81 81 72 . 100 100 46 43 70 60 120 60 100 Shots Fired 538 | 18 38 171 14 . 4 58 73 32 19 . 9 25 2 7 26 2 21 1 18 Gun 446 | 18 38 170 8 . 2 57 73 32 12 . 4 . . . 8 2 21 1 . Cannon 5 | . . . . . . . . . . . 3 1 . . . . . . 1 Launcher 82 | . . 1 6 . 2 1 . . 7 . 2 24 2 7 13 . . . 17 Special 5 | . . . . . . . . . . . . . . . 5 . . . . Kinetic 396 | 18 38 144 8 . 2 57 73 32 12 . 4 . . . 8 . . . . Thermal 31 | . . 26 . . . . . . . . 3 1 . . . . . . 1 Explosive 55 | . . 1 6 . 2 1 . . 7 . 2 24 2 . . . . . 10 Electromagnetic 20 | . . . . . . . . . . . . . . 7 13 . . . . Entropic 31 | . . . . . . . . . . . . . . . . 2 21 1 7 Robot Hit Streak 18 | 5 11 18 9 . 5 11 10 10 11 . 8 9 . 2 8 2 4 . 4 Robot Miss Streak 7 | 6 7 3 1 . . 2 4 4 3 . 2 . . 4 3 2 5 . 3 Penetration Max 1 | . . . . . . 1 1 . . . . . . . . . . . . Secondary Targets 6 | . . 2 . . . . 1 2 . . . . . . . . 1 . . Max Gunslinging Chain 1 | . . 1 . . . . 1 1 . . . . . . . . 1 . . Shots Hit Robots 441 | 8 47 153 10 . 2 39 54 24 15 . 13 9 . 2 12 2 19 2 30 Core Hits 313 | 3 14 48 14 . 7 19 22 17 25 . 11 57 1 7 16 2 10 . 40 Critical Kills 5 | . . 2 . . . . . 1 . . 1 1 . . . . . . . Critical Parts Destroyed 14 | . 4 4 . . . 1 3 1 . . . . . . . . 1 . . Critical Strikes 24 | . 4 6 . . . 1 3 2 1 . 1 1 . . . . 1 . 4 Meltdown 2 | . . . . . . . . . . . 1 1 . . . . . . . Destroy 8 | . . 1 . . . 1 3 2 1 . . . . . . . . . . Smash 9 | . 4 5 . . . . . . . . . . . . . . . . . Detonate 1 | . . . . . . . . . . . . . . . . . 1 . . Sunder 4 | . . . . . . . . . . . . . . . . . . . 4 Melee Attacks 197 | . 38 45 . . . 4 2 . 1 . 12 3 6 . 4 . 2 19 61 Impact 90 | . 38 45 . . . 4 2 . 1 . . . . . . . . . . Slashing 25 | . . . . . . . . . . . 12 3 6 . 4 . . . . Piercing 10 | . . . . . . . . . . . . . . . . . . . 10 Entropic 72 | . . . . . . . . . . . . . . . . . 2 19 51 Sneak Attacks 14 | . 5 3 . . . . . . . . . 1 . . . . . 1 4 Combat Hostiles . | . . . . . . . . . . . . . . . . . . . . Follow-up Attacks . | . . . . . . . . . . . . . . . . . . . . Damage Inflicted 21736 | 92 1135 2814 666 . 188 630 943 485 1062 . 988 4572 136 366 873 83 1068 248 5387 Guns 5590 | 92 289 1767 104 . 29 630 943 485 247 . 85 . . . 32 83 804 . . Cannons 530 | . . . . . . . . . . . 268 133 . . . . . . 129 Explosions 10546 | . . 30 562 . 159 . . . 815 . 278 4372 136 366 811 . 191 . 2826 Melee 5039 | . 846 1017 . . . . . . . . 357 67 . . 30 . 73 248 2401 Ramming 31 | . . . . . . . . . . . . . . . . . . . 31 Kinetic 4474 | 92 289 1538 104 . 29 630 943 485 247 . 85 . . . 32 . . . . Thermal 1350 | . . 229 . . . . . . . . 418 133 . 55 . . 191 . 324 Explosive 7709 | . . 30 562 . 159 . . . 815 . 128 4341 136 . . . . . 1538 Electromagnetic 1153 | . . . . . . . . . . . . 31 . 311 811 . . . . Impact 1863 | . 846 1017 . . . . . . . . . . . . . . . . . Slashing 454 | . . . . . . . . . . . 357 67 . . 30 . . . . Piercing . | . . . . . . . . . . . . . . . . . . . . Entropic 4702 | . . . . . . . . . . . . . . . . 83 877 248 3494 Highest Corruption 23 | . 1 . . . . 3 1 1 1 1 1 1 . 10 13 13 . . 23 Average Corruption 4 | . 1 . . . . 2 1 1 1 1 1 1 . 10 11 13 . . 9 Corruption Purged . | . . . . . . . . . . . . . . . . . . . . Corruption Blocked . | . . . . . . . . . . . . . . . . . . . . Effects 113 | . 2 . . . . 22 2 3 6 . 3 6 . 3 10 . . . 56 Message Errors 32 | . . . . . . 7 . 1 1 . 1 . . 1 5 . . . 16 Matter Fused 27 | . 1 . . . . 5 . 1 . . 1 4 . 1 1 . . . 13 Heat Flow Errors 10 | . . . . . . 3 . . . . . 1 . . . . . . 6 Energy Discharges 12 | . 1 . . . . 1 1 . 1 . . 1 . . . . . . 7 Parts Fused 2 | . . . . . . 1 . . . . . . . . . . . . 1 Data Loss (minor) 17 | . . . . . . 4 . . 2 . 1 . . . 3 . . . 7 Data Loss (major) 5 | . . . . . . . . . 1 . . . . . . . . . 4 Misfires 2 | . . . . . . . 1 . . . . . . . . . . . 1 Alerts 4 | . . . . . . 1 . . 1 . . . . 1 1 . . . . Misdirections 1 | . . . . . . . . . . . . . . . . . . . 1 Weapon Failures 1 | . . . . . . . . 1 . . . . . . . . . . . Overload Shots . | . . . . . . . . . . . . . . . . . . . . Overflow Damage 1673 | . 274 251 20 . . . . . . . 72 141 53 . . . 29 153 680 Projectiles 18 | . . . . . . . . . . . . 18 . . . . . . . Explosions 334 | . . . 20 . . . . . . . . 123 53 . . . 29 . 109 Melee 1321 | . 274 251 . . . . . . . . 72 . . . . . . 153 571 Knockbacks 5 | . 3 2 . . . . . . . . . . . . . . . . . Impact 5 | . 3 2 . . . . . . . . . . . . . . . . . Kinetic . | . . . . . . . . . . . . . . . . . . . . Secondary . | . . . . . . . . . . . . . . . . . . . . Self-Inflicted Damage 298 | . . . 24 . . . . . 25 . . . . 8 . . . . 241 Shots 7 | . . . 1 . . . . . 2 . . . . 1 . . . . 3 Rammed 3 | . . . . . . . . . . . . . . . . . . . 3 Targets Rammed 3 | . . . . . . . . . . . . . . . . . . . 3 Kicked . | . . . . . . . . . . . . . . . . . . . . Crushed . | . . . . . . . . . . . . . . . . . . . . Highest Temperature 353 | . . 185 . . . 231 . . 4 . . 261 . . 6 . . 22 353 Average Temperature 112 | . . 81 . . . 101 . . 4 . . 151 . . 4 . . 12 118 Received Heat Transfer 1476 | . 165 717 24 . . 9 . 45 99 . 225 12 . . 99 . . . 81 Effects 3 | . . . . . . . . . . . . . . . . . . . 3 Shutdowns 1 | . . . . . . . . . . . . . . . . . . . 1 Interference 2 | . . . . . . . . . . . . . . . . . . . 2 Siege Activations . | . . . . . . . . . . . . . . . . . . . . Martial Activations . | . . . . . . . . . . . . . . . . . . . . Shielding Activations . | . . . . . . . . . . . . . . . . . . . . Robots Disrupted . | . . . . . . . . . . . . . . . . . . . . Combat Hostiles . | . . . . . . . . . . . . . . . . . . . . Robots Corrupted 15 | . 6 4 . . . . . . . . . . . . 5 . . . . Combat Hostiles 11 | . 3 3 . . . . . . . . . . . . 5 . . . . Parts Fried 23 | . 11 7 . . . . . . . . . . . 1 4 . . . . Impact Corruptions 26 | . 14 12 . . . . . . . . . . . . . . . . . Robots Melted 2 | . . . . . . . . . . . 1 1 . . . . . . . Combat Hostiles 2 | . . . . . . . . . . . 1 1 . . . . . . . Parts Melted 2 | . . . . . . . . . . . 2 . . . . . . . . Heat Transferred 1420 | . . 500 . . . . . . . . 320 80 . 100 . . 100 . 320 Parts Sabotaged . | . . . . . . . . . . . . . . . . . . . . Parts Stolen . | . . . . . . . . . . . . . . . . . . . . Parts Stripped . | . . . . . . . . . . . . . . . . . . . . Power Chain Reactions 1 | . . . . . . . . . . . . . . 1 . . . . . Alert | -11 -10 -9 -9 -9 -8 -8 -7 -7 -7 -7 -6 -6 -5 -5 -5 -5 -4 -4 -3 ------- Run | Yrd Mat Mat Min Exi Min Mat Fac Low Low Dat Pro Fac Fac Upp Upp War Pro Fac Res Maximum Alert Level 3 | . . 1 . . . . 1 . . . . 2 1 . . . . 3 3 Low Security (%) 83 | 100 100 97 100 . 100 100 96 . . . . 92 50 . . . . 22 55 Level 1 10 | . . 2 . . . . 3 . . . . 4 49 . . . . 21 35 Level 2 2 | . . . . . . . . . . . . 3 . . . . . 15 7 Level 3 2 | . . . . . . . . . . . . . . . . . . 41 1 Level 4 . | . . . . . . . . . . . . . . . . . . . . Level 5 . | . . . . . . . . . . . . . . . . . . . . High Security . | . . . . . . . . . . . . . . . . . . . . Max Security . | . . . . . . . . . . . . . . . . . . . . Peak Influence 900 | 5 98 229 194 . 83 44 208 . . . . 448 227 . . . . 900 754 Initial 900 | . 3 . 87 . . 24 6 . . . . . 219 . . . . 900 13 Average 105 | 1 30 43 90 . 44 6 92 . . . . 67 197 . . . . 497 170 Influence Increases 6442 | 10 391 891 291 . 93 205 499 140 140 . 80 709 80 110 240 60 105 978 1420 Destroy 0b10 Robot/C 2760 | . 260 580 180 . 60 80 160 120 140 . 60 340 . 100 200 . 80 . 400 Destroy 0b10 Robot/NC 270 | 10 35 55 . . . 35 5 . . . 10 45 5 . . . 5 10 55 Destroy Leader 624 | . 52 170 30 . 10 46 60 20 . . 10 62 . 10 10 . 20 2 122 Allied During Kill 31 | . . . 11 . 10 10 . . . . . . . . . . . . . Successful Hack 187 | . 29 42 . . . 16 27 . . . . 19 12 . . . . 6 36 Disable Machine 195 | . 15 . 30 . . . 15 . . . . 75 15 . . . . . 45 Anti-Garrison Action 200 | . . . . . . . 200 . . . . . . . . . . . . Destroy Structure 765 | . . 14 40 . 13 18 2 . . . . 168 48 . . . . 30 432 Advance Influence 900 | . . . . . . . . . . . . . . . . . . 900 . Partial Spotted 90 | . . . . . . . . . . . . . . . . . . 30 60 Lose Combat Pursuer 420 | . . 30 . . . . 30 . . . . . . . 30 60 . . 270 Influence Decreases 5695 | 5 396 666 439 77 30 254 408 245 140 . 80 261 369 130 207 232 105 952 699 Entered New Map 805 | . 2 . 138 77 . 39 8 40 . . . . 229 60 27 172 . . 13 Time Decay 3536 | 5 349 476 301 . 30 215 350 195 90 . 70 241 120 70 150 60 75 302 437 Search Patrol Dispatched 200 | . . . . . . . . . . . . . . . . . . 200 . Lost Part 474 | . 35 80 . . . . . 10 30 . 10 20 20 . 30 . 30 . 209 Lost Ally 20 | . . . . . . . . . 20 . . . . . . . . . . Purge Threat 660 | . 10 110 . . . . 50 . . . . . . . . . . 450 40 Squads Dispatched 29 | . 2 1 . . . 1 4 . 1 . . 4 . . 1 . . 3 12 Investigation 6 | . 1 1 . . . 1 1 . . . . 2 . . . . . . . Extermination 11 | . . . . . . . 2 . . . . 1 . . . . . 2 6 Reinforcement 9 | . 1 . . . . . . . . . . 1 . . . . . 1 6 Assault 2 | . . . . . . . . . 1 . . . . . 1 . . . . Garrison 1 | . . . . . . . 1 . . . . . . . . . . . . Intercept . | . . . . . . . . . . . . . . . . . . . . Searches Triggered 2 | . . . . . . . . . . . . . . . . . . 2 . Construction Impeded 1 | . . . . . . . . . . . . . . . . . . . 1 Haulers Reinforced 1 | . . . . . . . . . . . . . . . . . . . 1 Active Scanning Responses . | . . . . . . . . . . . . . . . . . . . . Cargo Convoy Interrupts 1 | . . . . . . . . . . . . 1 . . . . . . . Stealth | -11 -10 -9 -9 -9 -8 -8 -7 -7 -7 -7 -6 -6 -5 -5 -5 -5 -4 -4 -3 --------- Run | Yrd Mat Mat Min Exi Min Mat Fac Low Low Dat Pro Fac Fac Upp Upp War Pro Fac Res Distress Signals 18 | . . 8 . . . . 1 . . . . 2 . . . 4 . . 3 Communications Jammed 36 | . . . . . . . . . . . . . . . . . . . 36 Distress Signals 13 | . . . . . . . . . . . . . . . . . . . 13 Times Spotted 286 | . 21 47 9 . 3 8 13 6 7 . 4 23 2 5 17 30 11 11 69 Peak Tracking Total 22 | . 5 6 3 . 3 2 3 3 7 . 3 13 1 5 8 11 4 8 22 Tactical Retreats 21 | . . 2 . . . . 1 . . . . . . . 2 3 . . 13 ECM-based Alert Blocks 10 | . . . . . . . . . . . . . . . . . . . 10 Traps | -11 -10 -9 -9 -9 -8 -8 -7 -7 -7 -7 -6 -6 -5 -5 -5 -5 -4 -4 -3 ------- Run | Yrd Mat Mat Min Exi Min Mat Fac Low Low Dat Pro Fac Fac Upp Upp War Pro Fac Res Traps Triggered 12 | . 1 . . . . 3 2 . . . . 2 1 . . . . . 3 Indirectly . | . . . . . . . . . . . . . . . . . . . . Trap Hack Attempts . | . . . . . . . . . . . . . . . . . . . . Triggered . | . . . . . . . . . . . . . . . . . . . . Disarmed . | . . . . . . . . . . . . . . . . . . . . Reprogrammed . | . . . . . . . . . . . . . . . . . . . . Reused . | . . . . . . . . . . . . . . . . . . . . Traps Extracted . | . . . . . . . . . . . . . . . . . . . . Installed . | . . . . . . . . . . . . . . . . . . . . Triggered . | . . . . . . . . . . . . . . . . . . . . Machines | -11 -10 -9 -9 -9 -8 -8 -7 -7 -7 -7 -6 -6 -5 -5 -5 -5 -4 -4 -3 ---------- Run | Yrd Mat Mat Min Exi Min Mat Fac Low Low Dat Pro Fac Fac Upp Upp War Pro Fac Res Machines Disabled 17 | . 1 . 2 . . . 1 . 2 . . 5 1 . 2 . . . 3 Max in Single Turn 2 | . 1 . 2 . . . 1 . 2 . . 1 1 . 1 . . . 1 Garrison Access 1 | . . . . . . . 1 . . . . . . . . . . . . Machines Repaired . | . . . . . . . . . . . . . . . . . . . . Machines Dismantled . | . . . . . . . . . . . . . . . . . . . . Machines Sabotaged . | . . . . . . . . . . . . . . . . . . . . Overloaded Fab Kills . | . . . . . . . . . . . . . . . . . . . . Hacking | -11 -10 -9 -9 -9 -8 -8 -7 -7 -7 -7 -6 -6 -5 -5 -5 -5 -4 -4 -3 --------- Run | Yrd Mat Mat Min Exi Min Mat Fac Low Low Dat Pro Fac Fac Upp Upp War Pro Fac Res Machines Accessed 68 | . 7 12 . 2 . 5 7 1 1 4 . 7 3 . . 2 . 8 9 Terminals 42 | . 7 11 . . . 2 5 . . . . 5 . . . . . 5 7 Fabricators 6 | . . . . . . . 1 . . . . 1 1 . . . . 2 1 Repair Stations . | . . . . . . . . . . . . . . . . . . . . Recycling Units 1 | . . . . . . 1 . . . . . . . . . . . . . Scanalyzers 5 | . . 1 . . . 1 . . . . . . 1 . . . . 1 1 Garrison Access 4 | . . . . . . 1 1 . . . . 1 1 . . . . . . Total Hacks 220 | . 27 36 . 2 . 18 21 1 1 31 . 19 5 . . 3 . 39 17 Successful 132 | . 15 22 . 2 . 12 12 1 1 31 . 4 1 . . 3 . 22 6 Failed 87 | . 12 13 . . . 6 9 . . . . 15 4 . . . . 17 11 Catastrophic 13 | . 3 1 . . . . 1 . . . . 2 3 . . . . . 3 Database Lockouts 1 | . . 1 . . . . . . . . . . . . . . . . . Manual 100 | . 20 22 . 1 . 6 14 . . . . 7 . . 1 2 . 22 5 Terminals 146 | . 27 33 . . . 9 18 . . . . 12 . . . . . 33 14 Fabricators 12 | . . . . . . . 1 . . . . 6 1 . . . . 3 1 Repair Stations . | . . . . . . . . . . . . . . . . . . . . Recycling Units 2 | . . . . . . 2 . . . . . . . . . . . . . Scanalyzers 14 | . . 3 . . . 4 . . . . . . 2 . . . . 3 2 Garrison Access 8 | . . . . . . 3 2 . . . . 1 2 . . . . . . Terminal Hacks 84 | . 10 9 . 2 . 4 6 1 1 31 . . . . . 3 . 14 3 Record 14 | . . . . 1 . . . . . 11 . . . . . 2 . . . Part Schematic 13 | . . . . . . . . . . 13 . . . . . . . . . Robot Schematic 4 | . . . . . . . . . . 4 . . . . . . . . . Robot Analysis 6 | . 3 . . . . 1 2 . . . . . . . . . . . . Prototype ID Bank 7 | . 2 1 . . . 1 . . . 3 . . . . . . . . . Open Door 3 | . . . . . . . . 1 1 . . . . . . 1 . . . Level Access Points 2 | . . . . . . . . . . . . . . . . . . 1 1 Branch Access Points 1 | . . . . . . . . . . . . . . . . . . 1 . Terminal Index 2 | . . 1 . . . . 1 . . . . . . . . . . . . Alert Level 2 | . . . . . . . . . . . . . . . . . . 1 1 Unreport Threat 11 | . 3 3 . . . . 1 . . . . . . . . . . 3 1 Locate Traps 6 | . 1 2 . . . 1 . . . . . . . . . . . 2 . Recall Investigation 1 | . . . . . . . 1 . . . . . . . . . . . . Recall Extermination 1 | . . . . . . . . . . . . . . . . . . 1 . Recall Reinforcements 1 | . . . . . . . . . . . . . . . . . . 1 . Hauler Manifests 1 | . 1 . . . . . . . . . . . . . . . . . . Zone Layout 8 | . . 2 . . . 1 1 . . . . . . . . . . 4 . Proto ID Catalog 1 | . . . . 1 . . . . . . . . . . . . . . . Fabricator Hacks 4 | . . . . . . . 1 . . . . 2 . . . . . . 1 Network Status 1 | . . . . . . . 1 . . . . . . . . . . . . Load Schematic 1 | . . . . . . . . . . . . 1 . . . . . . . Build 2 | . . . . . . . . . . . . 1 . . . . . . 1 Repair Station Hacks . | . . . . . . . . . . . . . . . . . . . . Recycling Unit Hacks 2 | . . . . . . 2 . . . . . . . . . . . . . Retrieve Matter 1 | . . . . . . 1 . . . . . . . . . . . . . Retrieve Components 1 | . . . . . . 1 . . . . . . . . . . . . . Scanalyzer 13 | . . 3 . . . 4 . . . . . . 1 . . . . 3 2 Retrieve Study 13 | . . 3 . . . 4 . . . . . . 1 . . . . 3 2 Garrison Access Hacks . | . . . . . . . . . . . . . . . . . . . . Unauthorized Hacks 29 | . 5 10 . . . 2 5 . . . . 2 . . . . . 5 . Terminals 28 | . 5 10 . . . 2 4 . . . . 2 . . . . . 5 . Botnet 28 | . 5 10 . . . 2 4 . . . . 2 . . . . . 5 . Fabricators . | . . . . . . . . . . . . . . . . . . . . Repair Stations . | . . . . . . . . . . . . . . . . . . . . Recycling Units . | . . . . . . . . . . . . . . . . . . . . Scanalyzers . | . . . . . . . . . . . . . . . . . . . . Garrison Access 1 | . . . . . . . 1 . . . . . . . . . . . . Jam 1 | . . . . . . . 1 . . . . . . . . . . . . Data Cores Recovered 2 | . . 1 . . . . . . . . . 1 . . . . . . . Used . | . . . . . . . . . . . . . . . . . . . . Hacking Detections 51 | . 7 11 . . . 3 6 . . . . 7 3 . . . . 7 7 Full Trace Events 5 | . 1 1 . . . 1 . . . . . 2 . . . . . . . Feedback Events . | . . . . . . . . . . . . . . . . . . . . Feedback Blocked . | . . . . . . . . . . . . . . . . . . . . Robot Schematics Acquired 4 | . . . . . . . . . . 4 . . . . . . . . . Robots Built . | . . . . . . . . . . . . . . . . . . . . Authchips . | . . . . . . . . . . . . . . . . . . . . Time 134 | . . . . . . . . . . . . 134 . . . . . . . Total Robot Build Rating . | . . . . . . . . . . . . . . . . . . . . Part Schematics Acquired 13 | . . . . . . . . . . 13 . . . . . . . . . Parts Built 2 | . . . . . . . . . . . . . . . . . . . 2 Authchips . | . . . . . . . . . . . . . . . . . . . . Time 46 | . . . . . . . . . . . . . . . . . . . 46 Total Part Build Rating 18 | . . . . . . . . . . . . . . . . . . . 18 Part Studies Acquired 13 | . . 3 . . . 4 . . . . . . 1 . . . . 3 2 Parts Repaired . | . . . . . . . . . . . . . . . . . . . . Time . | . . . . . . . . . . . . . . . . . . . . Parts Recycled . | . . . . . . . . . . . . . . . . . . . . Recycled Matter . | . . . . . . . . . . . . . . . . . . . . Retrieved Matter 87 | . . . . . . 87 . . . . . . . . . . . . . Retrieved Components 10 | . . . . . . 10 . . . . . . . . . . . . . Parts Scanalyzed . | . . . . . . . . . . . . . . . . . . . . Part Schematics Acquired . | . . . . . . . . . . . . . . . . . . . . Parts Damaged . | . . . . . . . . . . . . . . . . . . . . Bothacking | -11 -10 -9 -9 -9 -8 -8 -7 -7 -7 -7 -6 -6 -5 -5 -5 -5 -4 -4 -3 ------------ Run | Yrd Mat Mat Min Exi Min Mat Fac Low Low Dat Pro Fac Fac Upp Upp War Pro Fac Res Used RIF Installer . | . . . . . . . . . . . . . . . . . . . . Robots Hacked . | . . . . . . . . . . . . . . . . . . . . Non-combat . | . . . . . . . . . . . . . . . . . . . . Combat . | . . . . . . . . . . . . . . . . . . . . Robot Hacks Applied . | . . . . . . . . . . . . . . . . . . . . Relay Couplers Released . | . . . . . . . . . . . . . . . . . . . . Fabnet Peak Effective % . | . . . . . . . . . . . . . . . . . . . . Robots Rewired 2 | . . . . . . . . . 2 . . . . . . . . . . Allies Hacked 1 | . . . . . . . . . 1 . . . . . . . . . . Hacks Repelled . | . . . . . . . . . . . . . . . . . . . . Allies | -11 -10 -9 -9 -9 -8 -8 -7 -7 -7 -7 -6 -6 -5 -5 -5 -5 -4 -4 -3 -------- Run | Yrd Mat Mat Min Exi Min Mat Fac Low Low Dat Pro Fac Fac Upp Upp War Pro Fac Res Total Allies 5 | . . . 3 . . . . . 2 . . . . . . . . . . Largest Group 3 | . . . 3 3 3 2 . . 2 1 1 . . . . . . . . Highest-Rated Group 40 | . . . 40 40 40 32 . . 36 16 16 . . . . . . . . Highest-Rated Ally 20 | . . . 16 16 16 16 . . 20 16 16 . . . . . . . . Total Orders . | . . . . . . . . . . . . . . . . . . . . Ally Attacks 24 | . . . 8 . 15 . . . . . 1 . . . . . . . . Total Damage 286 | . . . 79 . 193 . . . . . 14 . . . . . . . . Kills 3 | . . . 1 . 2 . . . . . . . . . . . . . . Allies Corrupted 1 | . . . . . . 1 . . . . . . . . . . . . . Allies Melted 1 | . . . . . . . . . . . . . . . . 1 . . . Intel | -11 -10 -9 -9 -9 -8 -8 -7 -7 -7 -7 -6 -6 -5 -5 -5 -5 -4 -4 -3 ------- Run | Yrd Mat Mat Min Exi Min Mat Fac Low Low Dat Pro Fac Fac Upp Upp War Pro Fac Res Active Infowar (turns) 7460 | 10 455 . . . . . 373 536 765 92 518 711 247 146 213 1004 368 4 2018 Terrain 4968 | . . . . . . . 373 536 765 92 518 711 247 146 213 999 368 . . Seismic 465 | 10 455 . . . . . . . . . . . . . . . . . . Cloaking 1259 | . . . . . . . . . . . . . . . . 5 . . 1254 Jamming 1933 | . . . . . . . . . . . . . . . . . . 4 1929 ECM 583 | . . . . . . . . . . . . . . . . . . . 583 Robot Analysis Total 6 | . 3 . . . . 1 2 . . . . . . . . . . . . Derelict Logs Recovered 7 | . . . 1 . . . . 1 . . 1 . . 1 . . 3 . . Drone Launches . | . . . . . . . . . . . . . . . . . . . . Drone Recoveries . | . . . . . . . . . . . . . . . . . . . . Exploration | -11 -10 -9 -9 -9 -8 -8 -7 -7 -7 -7 -6 -6 -5 -5 -5 -5 -4 -4 -3 ------------- Run | Yrd Mat Mat Min Exi Min Mat Fac Low Low Dat Pro Fac Fac Upp Upp War Pro Fac Res Turns Passed 15763 | 119 1068 2401 746 344 87 1316 1272 568 800 92 753 711 247 146 306 1134 859 679 2115 Spaces Moved 10878 | 71 567 1166 383 208 45 717 707 335 446 80 292 776 374 230 352 980 354 1150 1645 Core 45 | 4 . . . . . . . . . . . . . . . . . . 41 Treads 329 | 6 78 158 . . . 87 . . . . . . . . . . . . . Legs . | . . . . . . . . . . . . . . . . . . . . Wheels 4399 | 61 489 1008 383 208 45 630 707 335 446 80 7 . . . . . . . . Hover 6094 | . . . . . . . . . . . 285 776 374 230 352 980 354 1150 1593 Flight 11 | . . . . . . . . . . . . . . . . . . . 11 Fastest Speed 44 | 50 95 115 165 165 165 155 155 155 105 105 116 52 52 52 52 48 48 44 44 Average Speed 106 | 100 122 161 165 165 165 166 160 155 132 105 186 76 52 55 55 52 48 45 88 Slowest Speed 320 | 160 160 320 165 165 165 235 170 170 155 120 236 118 52 105 105 111 111 103 196 Overloaded Moves 72 | . . . . . . . . . . . . . . . . . . . 72 Propulsion Burnouts 1 | . . . . . . . . . . . . . . . . . . . 1 Robots Hopped . | . . . . . . . . . . . . . . . . . . . . Potential Cave-ins 3 | . . . . . . . . . . . . 3 . . . . . . . Cave-ins Triggered 1 | . . . . . . . . . . . . . . . . . . . 1 Exploration Rate (%) 49 | 3 94 95 86 58 21 44 19 47 67 68 36 28 9 41 51 91 47 30 54 Regions Visited 19 Branch Regions 11 Pre-discovered Areas 4 | . . . . 1 . . . 1 . 1 . . . . . . 1 . . Known Exits Taken 3 | . 1 . . . . . . . . . . . . . 1 . . 1 . Unknown Exits Taken 16 | 1 . 1 1 1 1 1 1 1 1 1 1 1 1 1 . 1 1 . . Scrap Searched 5 | . . . 2 . . . . 1 . . 1 . . 1 . . . . . Spaces Dug 105 | . . 12 7 . . 20 2 . 10 . . 2 6 . . . 1 15 30 Terrain Destroyed 915 | . . 12 57 . 15 20 3 . 35 . 34 209 27 4 . 3 28 15 453 Melee 47 | . . 1 . . . 3 2 . 1 . . 2 6 . . . 1 15 16 Projectile 22 | . . . . . . . 1 . . . 1 . . . . 3 17 . . AOE 846 | . . 11 57 . 15 17 . . 34 . 33 207 21 4 . . 10 . 437 Terrain Rammed . | . . . . . . . . . . . . . . . . . . . . Walls Destroyed . | . . . . . . . . . . . . . . . . . . . . Machines Disabled . | . . . . . . . . . . . . . . . . . . . . Actions | -11 -10 -9 -9 -9 -8 -8 -7 -7 -7 -7 -6 -6 -5 -5 -5 -5 -4 -4 -3 --------- Run | Yrd Mat Mat Min Exi Min Mat Fac Low Low Dat Pro Fac Fac Upp Upp War Pro Fac Res Total 14318 | 95 834 1441 480 210 53 797 794 360 635 89 472 863 415 238 421 1601 1018 1279 2223 Wait 2516 | 2 193 56 82 . 3 17 22 5 149 5 124 39 24 . 32 569 651 94 449 Move 10859 | 70 566 1165 382 207 44 716 706 334 445 79 291 775 373 229 351 979 353 1149 1645 Hop . | . . . . . . . . . . . . . . . . . . . . Pick Up 99 | 5 5 32 . 1 . 6 4 3 2 . 7 7 4 . 1 9 . 3 10 Fast Attach 68 | 7 2 7 . . . 8 . . 3 . 5 2 2 1 1 13 . 6 11 Attach 50 | . 2 10 . . . . 2 1 3 3 5 3 2 . 1 3 1 1 13 Detach 13 | . . . . . . . . . . 2 3 1 . . . 4 . 1 2 Swap 95 | 2 6 18 6 . 2 12 12 4 10 . 6 2 . 1 4 4 . 1 5 Drop 110 | . 3 22 . 2 . 14 6 2 5 . 11 6 2 . 4 18 . 4 11 Fire 289 | 9 19 86 10 . 4 20 24 11 10 . 8 25 2 7 23 2 11 1 17 Melee 193 | . 38 45 . . . 4 2 . 1 . 12 3 6 . 4 . 2 19 57 Ram 3 | . . . . . . . . . . . . . . . . . . . 3 Kick . | . . . . . . . . . . . . . . . . . . . . Crush . | . . . . . . . . . . . . . . . . . . . . Escape Stasis 16 | . . . . . . . 16 . . . . . . . . . . . . Rewire 7 | . . . . . . . . . 7 . . . . . . . . . . Trap . | . . . . . . . . . . . . . . . . . . . . Miscellaneous . | . . . . . . . . . . . . . . . . . . . . Route ------- -11/Scrapyard -10/Materials (discovered 5 exits: *Mat x3 / *Min x2) -9/Materials (discovered 4 exits: *Mat x3 / [*Min]) -9/Mines (discovered 3 exits: *Mat x2 / *Exi) -9/Exiles -8/Mines -8/Materials -7/Factory (discovered 2 exits: Sto / *Low) -7/Lower Caves -7/Lower Caves (discovered 2 exits: *Fac / *Dat) -7/Data Miner -6/Proximity Caves -6/Factory -5/Factory -5/Upper Caves -5/Upper Caves -5/Warlord -4/Proximity Caves -4/Factory (discovered 8 exits: *Res x4 / Upp x2 / Ext x2) -3/Research (discovered 5 exits: Res x3 / *Qua x2) History --------- Turn | Location | Event 50 | -11/Scrapyard | Discovered new exit (range 16) 120 | -11/Scrapyard | Entered Materials 317 | -10/Materials | Build established: Mutant 392 | -10/Materials | Discovered new exit (range 14) 553 | -10/Materials | Discovered new exit (range 9) 662 | -10/Materials | Discovered new exit (range 11) 920 | -10/Materials | Discovered new exit (range 12) 930 | -10/Materials | Discovered new exit (range 4) 934 | -10/Materials | Identified exit to Mines 1186 | -10/Materials | Identified exit to Materials 1188 | -10/Materials | Entered another Materials area 1188 | -9/Materials | Evolved 2 slots: Propulsion x1, Utility x1 1536 | -9/Materials | Lost 6 parts (3n1u2w) 1689 | -9/Materials | Discovered new exit (range 7) 1792 | -9/Materials | Build established: Scavenger-Mutant 2267 | -9/Materials | Discovered new exit (range 9) 2485 | -9/Materials | Central database locked down 2638 | -9/Materials | Discovered new exit (range 14) 3028 | -9/Materials | Discovered new exit (range 16) 3514 | -9/Materials | Core integrity fell below 50% 3589 | -9/Materials | Entered Mines 3848 | -9/Mines | Assisted by bots powering up and referring to "LRC-V3" 4097 | -9/Mines | Discovered new exit (range 13) 4133 | -9/Mines | Discovered new exit (range 9) 4137 | -9/Mines | YI-UF0 nonchalantly dropped a Grenade Launcher on the ground 4318 | -9/Mines | Deemed a non-threat by the Exiles lab entrance 4318 | -9/Mines | Discovered new exit (range 5) 4335 | -9/Mines | Entered Exiles 4335 | -9/Exiles | Accompanied by 3 allies 4375 | -9/Exiles | Met 8R-AWN 4405 | -9/Exiles | Met EX-HEX 4451 | -9/Exiles | Met EX-BIN 4474 | -9/Exiles | Aligned with FarCom system 4476 | -9/Exiles | Given EX-Vault access code 4514 | -9/Exiles | Opened EX-Vault 4526 | -9/Exiles | Found YOLO Cannon 4562 | -9/Exiles | Warned to stay clear of 0b10 Research branches 4610 | -9/Exiles | Met EX-DEC 4613 | -9/Exiles | Learned location of Zion (-6) 4663 | -9/Exiles | Discovered new exit (range 12) 4679 | -9/Exiles | Left Exiles lab with YOLO Cannon 4679 | -9/Exiles | Entered Mines 4679 | -8/Mines | Accompanied by 3 allies 4749 | -8/Mines | Discovered new exit (range 10) 4766 | -8/Mines | Entered Materials 4766 | -8/Materials | Accompanied by 2 allies 4766 | -8/Materials | Evolved 2 slots: Utility x1, Weapon x1 5112 | -8/Materials | Build established: Scavenger-Skirmisher 5217 | -8/Materials | Discovered new exit (range 16) 6082 | -8/Materials | Entered Factory 6082 | -7/Factory | Evolved 2 slots: Utility x2 6083 | -7/Factory | Identified exit to Storage 6921 | -7/Factory | Build established: Tank 7329 | -7/Factory | Garrison activated, responded to threat 7332 | -7/Factory | Discovered new exit (range 15) 7354 | -7/Factory | Entered Lower Caves 7554 | -7/Lower Caves | Entered a destroyed Warlord outpost 7562 | -7/Lower Caves | Build established: Skirmisher 7832 | -7/Lower Caves | Encountered a Warlord checkpoint 7894 | -7/Lower Caves | Discovered new exit (range 14) 7922 | -7/Lower Caves | Entered another Lower Caves area 8020 | -7/Lower Caves | Found Alien Artifact 8020 | -7/Lower Caves | Identified Core Expander 8020 | -7/Lower Caves | Installed Core Expander, added new Utility slot 8112 | -7/Lower Caves | Discovered new exit (range 15) 8362 | -7/Lower Caves | Attracted the attention of an 0b10 outpost 8422 | -7/Lower Caves | Destroyed 7 combat bots 8423 | -7/Lower Caves | Lost 3 parts (2n1w) 8623 | -7/Lower Caves | Discovered new exit (range 15) 8659 | -7/Lower Caves | Build established: Scavenger-Mutant 8722 | -7/Lower Caves | Entered Data Miner 8722 | -7/Data Miner | Accompanied by 1 ally 8724 | -7/Data Miner | Discovered new exit (range 6) 8743 | -7/Data Miner | Met Data Miner 8773 | -7/Data Miner | Learned location of Section 7 (-2) 8773 | -7/Data Miner | Acquired the access code to Warlord's prototype stash 8782 | -7/Data Miner | Received God Mode back door access code from Data Miner 8814 | -7/Data Miner | Entered Proximity Caves 8814 | -6/Proximity Caves | Accompanied by 1 ally 8816 | -6/Proximity Caves | Attracted the attention of an 0b10 checkpoint 8885 | -6/Proximity Caves | Lost 5 parts (1p2n2w) 8952 | -6/Proximity Caves | Spotted B-75 Beast 9012 | -6/Proximity Caves | Destroyed B-75 Beast 9194 | -6/Proximity Caves | Learned Factory garrison access intel 9290 | -6/Proximity Caves | Found Prototype Launcher 9290 | -6/Proximity Caves | Identified Smartbomb Launcher 9294 | -6/Proximity Caves | Found Smartbomb Launcher 9301 | -6/Proximity Caves | Found Prototype Device 9301 | -6/Proximity Caves | Identified Exp. Thermal Defense Suite 9555 | -6/Proximity Caves | Discovered new exit (range 8) 9567 | -6/Proximity Caves | Entered Factory 9567 | -6/Factory | Evolved 2 slots: Power x1, Propulsion x1 9568 | -6/Factory | Loaded intel: 4 garrison access locations 9892 | -6/Factory | Watched by a mysterious "MATRIX" hacker. 10117 | -6/Factory | Allied Derelicts emerged from ambush trap array 10192 | -6/Factory | Build established: Scout 10227 | -6/Factory | Cargo convoy interrupted 10253 | -6/Factory | Destroyed 11 combat bots 10263 | -6/Factory | Discovered new exit (range 16) 10278 | -6/Factory | Entered another Factory area 10278 | -5/Factory | Evolved 2 slots: Propulsion x1, Utility x1 10419 | -5/Factory | Discovered new exit (range 3) 10525 | -5/Factory | Entered Upper Caves 10565 | -5/Upper Caves | Spotted B-75 Beast 10605 | -5/Upper Caves | System corruption reached 10% 10664 | -5/Upper Caves | Discovered new exit (range 16) 10671 | -5/Upper Caves | Entered another Upper Caves area 10672 | -5/Upper Caves | Identified exit to Warlord 10713 | -5/Upper Caves | Acquired the password to a Derelict Tinkerer's latest research 10723 | -5/Upper Caves | Found Prototype Special Weapon 10741 | -5/Upper Caves | Attacked by a delusional Derelict stockpiling Unaware 10755 | -5/Upper Caves | Encountered a Warlord checkpoint 10769 | -5/Upper Caves | Attracted the attention of an 0b10 outpost 10847 | -5/Upper Caves | Destroyed 8 combat bots 10880 | -5/Upper Caves | Caught by Unaware searching for contraband prototypes 10886 | -5/Upper Caves | Identified Molecular Deconstructor 10910 | -5/Upper Caves | Caught by Unaware searching for contraband prototypes 10977 | -5/Upper Caves | Entered Warlord 10988 | -5/Warlord | Discovered new exit (range 20) 10997 | -5/Warlord | System corruption cleaned by Quarantine Array 11139 | -5/Warlord | Visited the Vortex Lab 11149 | -5/Warlord | Found Prototype Energy Cannon 11149 | -5/Warlord | Identified Vortex Driver 11152 | -5/Warlord | Found Prototype Piercing Weapon 11152 | -5/Warlord | Identified Vortex Lance 11156 | -5/Warlord | Found Prototype Launcher 11156 | -5/Warlord | Identified Vortex Catalyst Activator 11158 | -5/Warlord | Found Vortex Lance 11159 | -5/Warlord | Warlord's base attacked by MAIN.C 11165 | -5/Warlord | Found Prototype Energy Gun 11167 | -5/Warlord | Found Prototype Energy Gun 11169 | -5/Warlord | Identified Vortex Shotgun 11191 | -5/Warlord | Build established: Mutant 11254 | -5/Warlord | Opened Warlord's prototype stash 11265 | -5/Warlord | Found Prototype Reactor 11265 | -5/Warlord | Identified Vortex Chain Reactor 11282 | -5/Warlord | Found Prototype Hackware 11285 | -5/Warlord | Found Prototype Device 11285 | -5/Warlord | Identified Exp. Cloaking Device 11294 | -5/Warlord | Found Prototype Device 11294 | -5/Warlord | Identified System Purifier 11296 | -5/Warlord | Found Prototype Processor 11296 | -5/Warlord | Identified Exp. Armor Integrity Analyzer 11309 | -5/Warlord | Met Warlord 11509 | -5/Warlord | Warlord forces counterattacked 11667 | -5/Warlord | Spotted Striker 11696 | -5/Warlord | Spotted Executioner 11737 | -5/Warlord | Lost 27 allies 11834 | -5/Warlord | Warlord base infiltrated, sounded retreat 11835 | -5/Warlord | Enhanced Grunt warped into view 11835 | -5/Warlord | Enhanced Grunt warped into view 11835 | -5/Warlord | Enhanced Grunt warped into view 11835 | -5/Warlord | Enhanced Demolisher warped into view 11835 | -5/Warlord | Enhanced Demolisher warped into view 11835 | -5/Warlord | Enhanced Demolisher warped into view 12047 | -5/Warlord | Spotted Executioner 12069 | -5/Warlord | Spotted Executioner 12111 | -5/Warlord | Entered Proximity Caves 12114 | -4/Proximity Caves | Spotter reported a threat 12114 | -4/Proximity Caves | Spotter reported a threat 12116 | -4/Proximity Caves | Spotted B-86 Titan 12123 | -4/Proximity Caves | Lost 10 allies 12231 | -4/Proximity Caves | Spotter reported a threat 12506 | -4/Proximity Caves | Spotter reported a threat 12514 | -4/Proximity Caves | Lost 3 parts (2p1u) 12559 | -4/Proximity Caves | Spotter reported a threat 12596 | -4/Proximity Caves | Spotter reported a threat 12948 | -4/Proximity Caves | Discovered new exit (range 14) 12957 | -4/Proximity Caves | Learned location of Armory (-3) 12958 | -4/Proximity Caves | Spotter reported a threat 12959 | -4/Proximity Caves | Learned 4 Research zone layouts 12964 | -4/Proximity Caves | Learned Research emergency access door positions 12970 | -4/Proximity Caves | Entered Factory 12970 | -4/Factory | Evolved 2 slots: Propulsion x1, Utility x1 12970 | -4/Factory | Identified System Mapper 13220 | -4/Factory | Search patrols dispatched 13268 | -4/Factory | Build established: Hacker-Mutant 13470 | -4/Factory | Search patrols dispatched 13612 | -4/Factory | Discovered new exit (range 18) 13612 | -4/Factory | Identified exit to Research 13612 | -4/Factory | Identified exit to Upper Caves 13612 | -4/Factory | Identified exit to Extension 13649 | -4/Factory | Entered Research 13649 | -3/Research | Evolved 2 slots: Propulsion x1, Utility x1 13703 | -3/Research | Fabricated Rnf. Quantum Reactor (x2) 14047 | -3/Research | Lost 3 parts (1p1n1w) 14419 | -3/Research | Lost 3 parts (2u1w) 14632 | -3/Research | Found Fusion Bomb Launcher 14656 | -3/Research | Discovered new exit (range 13) 14662 | -3/Research | Identified exit to Quarantine 14701 | -3/Research | Lost 4 parts (1p1n2u) 15068 | -3/Research | Discovered exit to Quarantine (range 11) 15532 | -3/Research | Identified exit to Research 15571 | -3/Research | System corruption reached 10% 15607 | -3/Research | Crushed by falling debris 15699 | -3/Research | Spotted B-86 Titan 15741 | -3/Research | Released all parts (8) 15742 | -3/Research | Core integrity fell below 50% 15757 | -3/Research | Core integrity fell below 20% 15764 | -3/Research | Destroyed by S-43 Plague with Heavy Machine Gun Last Messages --------------- 15741_ Released Antigrav Array. 15741_ Released YOLO Cannon. 15742_ R-10 Processor collects Hpw. Tractor Beam. 15743_ Acquired 3 matter. 15744_ R-10 Processor collects Wheel+. 15750_ Slammed into P-80 Master. 15753_ ALERT: Hostiles spotted, dispatching reinforcements to Terminal R015. 15753_ Slammed into S-43 Plague. 15753_ Slug penetrates Wall. 15754_ Slammed into S-43 Plague. 15755_ R-10 Processor collects Lgt. Antimatter Reactor+. 15756_ System corrupted: Energy discharge (-32). 15756_ Slug penetrates P-80 Master. 15756_ Penetrated by Slug. 15757_ Slug penetrates Wall. 15762_ ALERT: Suspicious intruders detected, dispatching Cutter reinforcements to area. Map ----- +----------------------------------------------------+ | ???# ###### # | | ????## ###????# + | | ?????##### " " #??????# """" # | | ?????????# " " #??????#! """" ###### | | ?????????## " " #??????# """" #????### ## | | ??????????# " " ##??????# """" !#??????# #? | | ??????????# " " #???????##?###########?## ## | | ??????????###"" "###????????????????# ### # | | ????????????# ???????????????????# " # | | ????????????# ???????????????????# ### # | | ?????????????? Y ???????????????????## #####"## | | ???????????????? ????????????????????# #?# % | | ??????????????????????????????????????# #?# | | ??????????????????????????????????????# #?# | | ??????????????????????????????????????# #?# | | ?????????????????????????????########## ### === | | ?????????????????????????????# # #!]!/ | | ?????????????????????????????# # "" %##!/*" | | ?????????????????????????????# / T" =% =[ | | ?????????????????????????????# #p ""=%" | | ?????????????????????????????# # p " " | | ?????????????????????????????# ##h ###### | | ????????????+????########+############p #????# | | ??????????????#### ss p #????# | | ??????????????+ s #????# | | ???????????????### @ s #????# | | ?????????????????# ####+############# ##????# | | ?????????????????# ????? ???????????# #?????#+ | | ???????????????????????? ???????????# #??????? | | ???????????????????????# ""??????????# #??????? | | ???????????????????????# ""??????????# #??????? | | ???????????????????????# ?????????# #??????? | | ???????????????????????# ??????#### #+####?? | | ???????????????????????# ! ?????+ #?? | | ???????????????????H???##############"###### #?? | | ?????????????????????????# #????# #?? | | ?????????????????????????# #???? ?? | | ?????????????????????????# "" """ #???? " ?? | | ??????????????????????????""" """ #???? ?? | | ?????????????????????????#"R """ #????# #?? | | ??????????????????????????""" #????# #?? | | ??????????????????????????""" #????# #?? | | ?????????????????????????# """ #????# #?? | | ?????????????????????????#= """ #????# #?? | | ?????????????????????????+ """ ###### ### | | ?????????????????????????# + ! | | ?????????????????????????# [ ######!%= | | ???????????????????????+######+#+######????# | | ???????????????????????? ??# #?######## | | ????????????????????????? ]?# # # | +----------------------------------------------------+ Best States ------------- Heat Dissipation 78 Energy Generation 54 Energy Capacity 1300 Matter Stores 300 Matter Capacity 300 Sight Range 16 Terrain Scan Range 20 Terrain Scan Density 210 ECM Strength 2 Jamming Range 16 Cloak Strength 4 Power Amplification 30 Additional Mass Support 16 Armor Coverage 375 Resistance: TH 10 Weapon Cycling 15 Evasion (%) 56 Target Analysis 5 Armor Integrity Analysis 50 Recoil Reduction 3 Offensive Hacking 20 Defensive Hacking 14 Item Schematics ----------------- Combat Drone Bay | -7/Data Miner | Free Lgt. Regenerative Plating | -7/Data Miner | Free Biomechanical Wings | -7/Data Miner | Free Gravity Neutralizer | -7/Data Miner | Free Com. Ion Cannon | -7/Data Miner | Free Hvy. Treads | -7/Data Miner | Free Imp. Kinecellerator | -7/Data Miner | Free Tesla Rifle | -7/Data Miner | Free EM Shield | -7/Data Miner | Free Nuclear Pulse Array | -7/Data Miner | Free Antigrav System | -7/Data Miner | Free Adv. Power Amplifier | -7/Data Miner | Free Adv. Coolant Injector | -7/Data Miner | Free Robot Schematics ------------------ H-66 Slayer | -7/Data Miner | Free L-41 Fighter | -7/Data Miner | Free B-48 Gladiator | -7/Data Miner | Free A-15 Conveyor | -7/Data Miner | Free Fabricated ------------ Rnf. Quantum Reactor | x2 | -3/Research | Preloaded Repaired ---------- Nothing Studied --------- Hvy. Assault Rifle | -9/Materials | Hacked Hammer | -9/Materials | Hacked Imp. Hover Unit | -9/Materials | Hacked Minigun | -8/Materials | Hacked Arm. Wheel | -8/Materials | Hacked Wheel | -8/Materials | Hacked Hvy. Mace | -8/Materials | Hacked Gravmag Array | -5/Factory | Hacked Imp. Antigrav System | -4/Factory | Hacked Lgt. Antimatter Reactor | -4/Factory | Hacked Cmb. Airjet | -4/Factory | Hacked Gyrokinetic Inverter | -3/Research | Hacked Cmb. Gravmag System | -3/Research | Hacked Alien Tech Used ----------------- Core Expander Achievements -------------- None Challenges ------------ None Game ------ Seed PortableDamperScreen Manual? 0 Play Time 02:01:44 Cumulative 151.3 hours Start 2026.03.22 @ 21:59:00 End 2026.03.23 @ 00:05:11 Sessions 1 Manual Loads 0 Difficulty Rogue Special Mode None Game No. 123 Rogue 123 Adventurer 0 Explorer 0 Win Type - Total 2 Types 2/0/0/0/0/0/0/0/0/0 Lore% 71 Gallery% 59 Achievement% 51 Wizard Run 0 Options --------- Layout 2 ASCII 0 Keyboard 0 Movement Mouse Keybinds 0 Fullscreen 1 Font 24/Smallcaps Map View 50x44 Zoom Use 0% Tactical HUD 1 Map Filters NONE Filters NONE Steam 1 RUN: b5930ec0-09f2-4b94-84f8-4b70e497da8c